[Event "Chess Festival Groningen 2023 | A"]
[Site "Groningen, Netherlands"]
[Date "2023.12.28"]
[Round "7.26"]
[White "Grooten, Herman"]
[Black "Kazarjan, Gachatur"]
[Result "1-0"]
[TimeControl "90min/40moves + 30min + 30sec/move"]
[WhiteElo "2243"]
[BlackElo "2078"]

1. Nf3 {[%clk 01:30:56]} {[%emt 00:00:05]} d5 {[%clk 01:30:57]} {[%emt
00:00:11]} 2. b3 {[%clk 01:31:10]} {[%emt 00:00:14]} c5 {[%clk 01:31:03]}
{[%emt 00:00:19]} 3. e3 {[%clk 01:31:26]} {[%emt 00:00:13]} e6 {[%clk
01:31:27]} {[%emt 00:00:08]} 4. Bb2 {[%clk 01:31:41]} {[%emt 00:00:14]} Nf6
{[%clk 01:31:51]} {[%emt 00:00:06]} 5. Ne5 {[%clk 01:28:06]} {[%emt 00:04:08]}
Be7 {[%clk 01:30:14]} {[%emt 00:02:08]} 6. d3 {[%clk 01:20:56]} {[%emt
00:07:36]} Nc6 {[%clk 01:23:01]} {[%emt 00:07:43]} 7. Nxc6 {[%clk 01:19:47]}
{[%emt 00:01:52]} bxc6 {[%clk 01:22:13]} {[%emt 00:01:04]} 8. Nd2 {[%clk
01:20:06]} {[%emt 00:00:11]} O-O {[%clk 01:22:21]} {[%emt 00:00:22]} 9. Be2
{[%clk 01:16:53]} {[%emt 00:03:44]} Qc7 {[%clk 01:20:55]} {[%emt 00:01:56]} 10.
O-O {[%clk 01:13:05]} {[%emt 00:04:18]} Nd7 {[%clk 00:54:52]} {[%emt 00:26:32]}
11. f4 {[%clk 01:03:07]} {[%emt 00:10:28]} f5 {[%clk 00:51:57]} {[%emt
00:03:24]} 12. Nf3 {[%clk 01:00:33]} {[%emt 00:03:07]} Bf6 {[%clk 00:51:55]}
{[%emt 00:00:34]} 13. Bxf6 {[%clk 00:57:35]} {[%emt 00:03:23]} Rxf6 {[%clk
00:50:28]} {[%emt 00:01:57]} 14. Qd2 {[%clk 00:55:01]} {[%emt 00:03:08]} Ba6
{[%clk 00:43:27]} {[%emt 00:07:30]} 15. c4 {[%clk 00:54:09]} {[%emt 00:01:19]}
Re8 {[%clk 00:42:58]} {[%emt 00:01:00]} 16. Rac1 {[%clk 00:39:20]} {[%emt
00:15:18]} d4 {[%clk 00:33:32]} {[%emt 00:09:56]} 17. exd4 {[%clk 00:33:29]}
{[%emt 00:06:20]} cxd4 {[%clk 00:32:38]} {[%emt 00:01:28]} 18. c5 {[%clk
00:32:16]} {[%emt 00:01:39]} e5 {[%clk 00:31:06]} {[%emt 00:02:07]} 19. fxe5
{[%clk 00:32:01]} {[%emt 00:00:44]} Nxe5 {[%clk 00:31:30]} {[%emt 00:00:05]} 20.
Nxd4 {[%clk 00:28:48]} {[%emt 00:03:39]} Qd7 {[%clk 00:30:58]} {[%emt
00:01:15]} 21. Qc3 {[%clk 00:27:20]} {[%emt 00:01:45]} Rd8 {[%clk 00:30:00]}
{[%emt 00:05:20]} 22. Nc2 {[%clk 00:23:12]} {[%emt 00:06:03]} Re6 {[%clk
00:19:28]} {[%emt 00:05:49]} 23. Nb4 {[%clk 00:19:16]} {[%emt 00:04:22]} Nxd3
{[%clk 00:16:25]} {[%emt 00:03:36]} 24. Bxd3 {[%clk 00:17:09]} {[%emt
00:02:34]} Bxd3 {[%clk 00:15:50]} {[%emt 00:01:06]} 25. Rcd1 {[%clk 00:16:26]}
{[%emt 00:01:21]} Re3 {[%clk 00:11:57]} {[%emt 00:04:14]} 26. Rf3 {[%clk
00:10:16]} {[%emt 00:06:40]} Qe6 {[%clk 00:11:39]} {[%emt 00:00:48]} 27. Rxd3
{[%clk 00:07:45]} {[%emt 00:03:02]} Re1+ {[%clk 00:11:40]} {[%emt 00:00:29]} 28.
Rf1 {[%clk 00:06:02]} {[%emt 00:02:20]} Rxd3 {[%clk 00:10:42]} {[%emt
00:01:20]} 29. Rxe1 {[%emt 00:01:16]} 1-0

[Event "Chess Festival Groningen 2023 | A"]
[Site "Groningen, Netherlands"]
[Date "2023.12.28"]
[Round "7.27"]
[White "Kumar, Prajit Sai"]
[Black "Ritzerveld, Noah"]
[Result "0-1"]
[TimeControl "90min/40moves + 30min + 30sec/move"]
[WhiteElo "2172"]
[BlackElo "1997"]

1. d4 {[%clk 01:30:26]} d5 {[%clk 01:30:54]} 2. Nf3 {[%clk 01:30:51]} {[%emt
00:00:07]} Nf6 {[%clk 01:31:20]} 3. c4 {[%clk 01:30:50]} {[%emt 00:00:43]} c6
{[%clk 01:31:44]} 4. g3 {[%clk 01:31:14]} {[%emt 00:00:04]} Bf5 {[%clk
01:30:48]} {[%emt 00:01:19]} 5. Nc3 {[%clk 01:31:04]} {[%emt 00:00:40]} e6
{[%clk 01:30:47]} {[%emt 00:00:45]} 6. Nh4 {[%clk 01:31:10]} {[%emt 00:00:10]}
dxc4 {[%clk 01:30:45]} {[%emt 00:00:37]} 7. Nxf5 {[%clk 01:30:20]} {[%emt
00:01:15]} exf5 {[%clk 01:31:08]} {[%emt 00:00:32]} 8. e3 {[%clk 01:30:24]}
{[%emt 00:00:10]} Bd6 {[%clk 01:30:52]} {[%emt 00:00:36]} 9. Bxc4 {[%clk
01:30:15]} {[%emt 00:01:18]} O-O {[%clk 01:30:51]} 10. Qf3 {[%clk 01:27:23]}
{[%emt 00:03:18]} g6 {[%clk 01:30:52]} {[%emt 00:00:42]} 11. h3 {[%clk
01:26:55]} {[%emt 00:01:02]} Qe7 {[%clk 01:28:41]} {[%emt 00:02:20]} 12. g4
{[%clk 01:24:53]} {[%emt 00:02:31]} c5 {[%clk 01:24:45]} {[%emt 00:04:26]} 13.
dxc5 {[%clk 01:23:58]} {[%emt 00:01:52]} Bxc5 {[%clk 01:24:41]} {[%emt
00:00:13]} 14. gxf5 {[%clk 01:24:06]} {[%emt 00:00:17]} Nc6 {[%clk 01:23:36]}
{[%emt 00:01:36]} 15. fxg6 {[%clk 01:20:37]} {[%emt 00:04:06]} hxg6 {[%clk
01:22:53]} {[%emt 00:01:03]} 16. Qg2 {[%clk 01:15:17]} {[%emt 00:05:51]} Kg7
{[%clk 01:19:09]} {[%emt 00:04:14]} 17. Bd2 {[%clk 01:13:18]} {[%emt 00:03:07]}
Ne5 {[%clk 01:08:37]} {[%emt 00:10:34]} 18. Be2 {[%clk 01:12:43]} {[%emt
00:01:10]} Rfd8 {[%clk 01:07:15]} {[%emt 00:01:37]} 19. O-O-O {[%clk 01:09:51]}
{[%emt 00:03:24]} Nd3+ {[%clk 01:04:47]} {[%emt 00:02:58]} 20. Bxd3 {[%clk
01:09:30]} {[%emt 00:00:48]} Rxd3 {[%clk 01:05:09]} {[%emt 00:00:40]} 21. Kc2
{[%clk 01:01:38]} {[%emt 00:08:11]} Rad8 {[%clk 01:04:07]} {[%emt 00:01:11]} 22.
Bc1 {[%clk 01:00:26]} {[%emt 00:01:47]} Qd7 {[%clk 00:59:15]} {[%emt 00:05:17]}
23. Qf3 {[%clk 01:00:03]} {[%emt 00:01:09]} Bb6 {[%clk 00:41:44]} {[%emt
00:17:49]} 24. b3 {[%clk 00:51:57]} {[%emt 00:08:33]} Ba5 {[%clk 00:33:00]}
{[%emt 00:09:17]} 25. Bb2 {[%clk 00:51:24]} {[%emt 00:01:03]} Rd2+ {[%clk
00:32:45]} {[%emt 00:00:44]} 26. Kc1 {[%clk 00:50:42]} {[%emt 00:01:16]} Qd3
{[%clk 00:32:52]} {[%emt 00:00:16]} 27. Qxf6+ {[%clk 00:50:02]} {[%emt
00:01:36]} Kxf6 {[%clk 00:32:35]} {[%emt 00:00:21]} 28. Nd5+ {[%clk 00:50:10]}
{[%emt 00:00:38]} Kg5 {[%emt 00:03:15]} 29. f4+ {[%clk 00:46:13]} {[%emt
00:08:48]} Kh6 {[%clk 00:31:45]} {[%emt 00:00:25]} 0-1

[Event "Chess Festival Groningen 2023 | A"]
[Site "Groningen, Netherlands"]
[Date "2023.12.28"]
[Round "7.28"]
[White "Ter-Avetisjana, Agnesa Stepania"]
[Black "Bakija, Alan"]
[Result "1/2-1/2"]
[TimeControl "90min/40moves + 30min + 30sec/move"]
[WhiteFideId "11614900"]
[WhiteElo "1974"]
[BlackElo "2010"]

1. e4 {[%clk 01:30:58]} {[%emt 00:00:05]} e5 {[%clk 01:30:55]} 2. Nf3 {[%clk
01:31:21]} Nc6 {[%clk 01:31:14]} {[%emt 00:00:08]} 3. Nc3 {[%clk 01:31:32]}
{[%emt 00:00:24]} Nf6 {[%clk 01:31:34]} {[%emt 00:00:09]} 4. d4 {[%clk
01:31:53]} {[%emt 00:00:10]} exd4 {[%clk 01:31:59]} {[%emt 00:00:07]} 5. Nxd4
{[%clk 01:32:15]} {[%emt 00:00:04]} Bb4 {[%clk 01:32:07]} {[%emt 00:00:22]} 6.
Nxc6 {[%clk 01:32:36]} {[%emt 00:00:07]} bxc6 {[%clk 01:32:34]} {[%emt
00:00:04]} 7. Bd3 {[%clk 01:32:54]} {[%emt 00:00:12]} O-O {[%clk 01:32:55]}
{[%emt 00:00:06]} 8. O-O {[%clk 01:33:17]} {[%emt 00:00:16]} d5 {[%clk
01:33:17]} {[%emt 00:00:07]} 9. exd5 {[%clk 01:32:40]} {[%emt 00:00:58]} Bg4
{[%clk 01:32:48]} {[%emt 00:00:57]} 10. f3 {[%clk 01:26:23]} {[%emt 00:06:49]}
Bh5 {[%clk 01:33:12]} {[%emt 00:00:38]} 11. dxc6 {[%clk 01:22:54]} {[%emt
00:03:26]} Qd4+ {[%clk 01:33:29]} {[%emt 00:00:36]} 12. Kh1 {[%clk 01:23:19]}
Bxc3 {[%clk 01:33:54]} 13. bxc3 {[%clk 01:23:40]} Qxc3 {[%clk 01:34:20]} {[%emt
00:00:14]} 14. Rb1 {[%clk 01:19:31]} {[%emt 00:04:28]} Bg6 {[%clk 01:32:45]}
{[%emt 00:02:00]} 15. Rb3 {[%clk 01:15:45]} {[%emt 00:04:17]} Qxc6 {[%clk
01:32:56]} {[%emt 00:00:26]} 16. Bb5 {[%clk 01:15:59]} {[%emt 00:00:19]} Qxc2
{[%clk 01:22:11]} {[%emt 00:11:06]} 17. Qxc2 {[%clk 01:15:22]} {[%emt
00:01:05]} Bxc2 {[%clk 01:22:35]} {[%emt 00:00:20]} 18. Rc3 {[%clk 01:15:41]}
{[%emt 00:00:19]} Bf5 {[%clk 01:22:51]} {[%emt 00:00:04]} 19. Rxc7 {[%clk
00:58:02]} {[%emt 00:17:58]} Rfc8 {[%clk 01:22:33]} {[%emt 00:00:47]} 20. Rxc8+
{[%clk 00:52:01]} {[%emt 00:06:31]} Rxc8 {[%clk 01:22:54]} {[%emt 00:00:18]} 21.
Be3 {[%clk 00:51:55]} {[%emt 00:00:28]} Nd5 {[%clk 01:18:24]} {[%emt 00:05:01]}
22. Bxa7 {[%clk 00:46:40]} {[%emt 00:05:45]} Nc3 {[%clk 01:18:32]} {[%emt
00:00:23]} 23. a4 {[%clk 00:47:00]} {[%emt 00:00:23]} Nxb5 {[%clk 01:18:53]} 24.
axb5 {[%clk 00:47:24]} {[%emt 00:00:23]} Bd3 {[%clk 01:19:13]} 25. b6 {[%clk
00:45:28]} {[%emt 00:02:12]} Bxf1 {[%clk 01:18:47]} {[%emt 00:00:55]} 26. b7
{[%clk 00:45:53]} {[%emt 00:00:21]} Ba6 {[%clk 01:18:58]} {[%emt 00:00:10]} 27.
bxc8=Q+ {[%clk 00:46:11]} {[%emt 00:00:16]} Bxc8 1/2-1/2

[Event "Chess Festival Groningen 2023 | A"]
[Site "Groningen, Netherlands"]
[Date "2023.12.28"]
[Round "7.29"]
[White "Van Der Leest, Bert"]
[Black "Spit, Vincent"]
[Result "0-1"]
[TimeControl "90min/40moves + 30min + 30sec/move"]
[WhiteFideId "1009460"]
[WhiteElo "2142"]
[BlackElo "2076"]

1. e4 {[%clk 01:30:59]} {[%emt 00:00:17]} c5 {[%clk 01:30:53]} 2. Nf3 {[%clk
01:31:23]} {[%emt 00:00:24]} e6 {[%clk 01:31:16]} 3. d4 {[%clk 01:31:49]} cxd4
{[%clk 01:31:40]} 4. Nxd4 {[%clk 01:32:05]} {[%emt 00:00:07]} Nc6 {[%clk
01:31:56]} {[%emt 00:00:18]} 5. Nc3 {[%clk 01:32:22]} {[%emt 00:00:08]} Qc7
{[%clk 01:32:14]} {[%emt 00:00:14]} 6. Be3 {[%clk 01:32:30]} {[%emt 00:00:45]}
a6 {[%clk 01:32:34]} {[%emt 00:00:04]} 7. Qd2 {[%clk 01:31:51]} {[%emt
00:01:01]} Nf6 {[%clk 01:31:49]} {[%emt 00:01:06]} 8. f3 {[%clk 01:32:12]}
{[%emt 00:00:09]} Be7 {[%clk 01:31:20]} {[%emt 00:01:01]} 9. O-O-O {[%clk
01:30:10]} {[%emt 00:02:49]} O-O {[%clk 01:31:20]} {[%emt 00:00:12]} 10. g4
{[%clk 01:30:26]} {[%emt 00:00:12]} Nxd4 {[%clk 01:31:09]} {[%emt 00:00:39]} 11.
Bxd4 {[%clk 01:30:26]} {[%emt 00:00:33]} b5 {[%clk 01:31:10]} {[%emt 00:01:05]}
12. e5 {[%clk 01:29:34]} {[%emt 00:01:07]} Ne8 {[%clk 01:24:47]} {[%emt
00:06:28]} 13. Ne4 {[%clk 01:23:20]} {[%emt 00:06:48]} Bb7 {[%clk 01:24:01]}
{[%emt 00:01:13]} 14. Bd3 {[%clk 01:23:37]} {[%emt 00:00:35]} f6 {[%clk
01:19:43]} {[%emt 00:04:25]} 15. f4 {[%clk 01:03:53]} {[%emt 00:20:15]} f5
{[%clk 01:13:11]} {[%emt 00:07:01]} 16. gxf5 {[%clk 01:04:17]} {[%emt
00:00:26]} exf5 {[%clk 01:13:10]} {[%emt 00:00:11]} 17. Ng3 {[%clk 01:04:04]}
{[%emt 00:00:43]} Bxh1 {[%clk 01:12:51]} {[%emt 00:00:48]} 18. Rxh1 {[%clk
01:04:09]} {[%emt 00:00:25]} g6 {[%clk 01:07:09]} {[%emt 00:06:13]} 19. Nxf5
{[%clk 01:04:00]} {[%emt 00:00:38]} Rxf5 {[%clk 00:57:37]} {[%emt 00:10:02]} 20.
Bxf5 {[%clk 01:04:09]} {[%emt 00:00:39]} Qc4 {[%clk 00:56:42]} {[%emt
00:01:07]} 21. c3 {[%clk 00:47:13]} {[%emt 00:17:30]} Qxa2 {[%clk 00:51:15]}
{[%emt 00:05:51]} 22. Rg1 {[%clk 00:41:24]} {[%emt 00:06:23]} Ng7 {[%clk
00:49:46]} {[%emt 00:02:19]} 23. Be4 {[%clk 00:37:05]} {[%emt 00:04:30]} Rf8
{[%clk 00:47:34]} {[%emt 00:02:39]} 24. Be3 {[%clk 00:37:24]} {[%emt 00:00:30]}
Qa1+ {[%clk 00:46:07]} {[%emt 00:01:39]} 25. Bb1 {[%clk 00:37:43]} {[%emt
00:00:35]} Nf5 {[%clk 00:44:57]} {[%emt 00:01:51]} 26. Qd5+ {[%clk 00:34:32]}
{[%emt 00:03:05]} Kh8 {[%clk 00:41:32]} {[%emt 00:03:55]} 27. Bb6 {[%clk
00:32:13]} {[%emt 00:02:52]} Qa4 {[%clk 00:36:13]} {[%emt 00:05:45]} 28. Rf1
{[%clk 00:25:20]} {[%emt 00:07:34]} b4 {[%clk 00:33:59]} {[%emt 00:03:12]} 29.
Qc4 {[%clk 00:20:21]} {[%emt 00:04:51]} Qa1 {[%clk 00:32:02]} {[%emt 00:02:27]}
30. Rd1 {[%clk 00:19:32]} {[%emt 00:01:19]} bxc3 {[%clk 00:30:45]} {[%emt
00:01:46]} 31. Qxc3 {[%clk 00:19:35]} {[%emt 00:00:29]} Qa4 {[%clk 00:29:10]}
{[%emt 00:02:03]} 32. Bxf5 {[%clk 00:17:20]} {[%emt 00:02:45]} Qxf4+ {[%clk
00:28:14]} {[%emt 00:01:32]} 33. Be3 {[%clk 00:17:45]} {[%emt 00:00:03]} Qxf5
{[%clk 00:28:27]} {[%emt 00:00:12]} 34. e6+ {[%clk 00:17:55]} {[%emt 00:00:21]}
Bf6 {[%clk 00:28:11]} {[%emt 00:00:46]} 35. Bd4 {[%clk 00:03:36]} {[%emt
00:14:50]} dxe6 {[%clk 00:25:28]} {[%emt 00:03:15]} 36. Bxf6+ {[%clk 00:02:33]}
{[%emt 00:01:30]} Qxf6 {[%clk 00:25:04]} {[%emt 00:01:10]} 37. Rd6 {[%clk
00:01:45]} {[%emt 00:01:02]} Qxc3+ {[%clk 00:24:38]} {[%emt 00:00:58]} 38. bxc3
{[%clk 00:02:11]} {[%emt 00:00:08]} Rf2 {[%clk 00:20:31]} {[%emt 00:04:34]} 39.
Rxe6 {[%clk 00:01:59]} {[%emt 00:00:40]} Rxh2 {[%clk 00:20:50]} {[%emt
00:00:13]} 40. Rxa6 {[%clk 00:02:12]} {[%emt 00:00:13]} Kg7 {[%clk 00:21:00]}
{[%emt 00:00:29]} 41. Kd1 {[%clk 00:30:18]} {[%emt 00:02:24]} Kf7 {[%clk
00:50:20]} {[%emt 00:01:02]} 42. Ke1 {[%clk 00:30:23]} {[%emt 00:00:35]} h5
{[%clk 00:44:13]} {[%emt 00:06:31]} 43. Kf1 {[%clk 00:29:28]} {[%emt 00:01:24]}
Kg7 {[%clk 00:41:06]} {[%emt 00:03:34]} 44. Kg1 {[%clk 00:29:29]} {[%emt
00:00:30]} Rc2 {[%clk 00:41:28]} {[%emt 00:00:19]} 45. Rc6 {[%clk 00:29:55]}
Kh6 {[%clk 00:41:29]} {[%emt 00:00:24]} 46. c4 {[%clk 00:24:15]} {[%emt
00:06:07]} h4 {[%clk 00:41:02]} {[%emt 00:00:57]} 47. c5 {[%clk 00:22:15]}
{[%emt 00:02:31]} Kh5 {[%clk 00:40:55]} {[%emt 00:00:40]} 48. Rc8 {[%clk
00:22:28]} {[%emt 00:00:14]} g5 {[%clk 00:40:16]} {[%emt 00:01:09]} 49. c6
{[%clk 00:21:35]} {[%emt 00:01:55]} Kg4 {[%clk 00:37:20]} {[%emt 00:02:53]} 50.
Ra8 {[%clk 00:19:28]} {[%emt 00:02:38]} Rxc6 {[%clk 00:37:32]} {[%emt
00:00:18]} 51. Ra4+ {[%clk 00:19:49]} {[%emt 00:00:09]} Kh5 {[%clk 00:37:20]}
{[%emt 00:00:44]} 52. Ra5 {[%clk 00:18:37]} {[%emt 00:01:39]} Rc2 {[%clk
00:36:33]} {[%emt 00:01:21]} 53. Ra4 {[%clk 00:18:32]} {[%emt 00:00:31]} h3
{[%clk 00:36:19]} {[%emt 00:01:03]} 54. Kh1 {[%clk 00:17:36]} {[%emt 00:01:07]}
g4 {[%clk 00:36:29]} {[%emt 00:00:23]} 55. Ra3 {[%clk 00:16:13]} {[%emt
00:01:51]} Kh4 {[%clk 00:36:41]} {[%emt 00:00:44]} 56. Rb3 {[%clk 00:16:29]}
Rf2 {[%clk 00:35:10]} {[%emt 00:01:47]} 57. Ra3 {[%clk 00:16:14]} {[%emt
00:00:51]} Rf3 {[%clk 00:34:59]} {[%emt 00:00:35]} 58. Ra1 {[%clk 00:16:32]}
{[%emt 00:00:26]} Rf4 {[%clk 00:34:10]} {[%emt 00:01:06]} 59. Kg1 {[%clk
00:14:09]} {[%emt 00:02:53]} Rb4 {[%clk 00:33:38]} {[%emt 00:01:04]} 60. Kh1
{[%clk 00:13:10]} {[%emt 00:01:28]} g3 {[%clk 00:33:33]} {[%emt 00:00:33]} 61.
Kg1 {[%clk 00:12:53]} {[%emt 00:00:46]} h2+ {[%clk 00:33:00]} {[%emt 00:01:02]}
62. Kg2 {[%clk 00:11:54]} {[%emt 00:01:30]} Rb2+ {[%clk 00:33:21]} {[%emt
00:00:34]} 63. Kh1 {[%emt 00:02:57]} Kh3 0-1

[Event "Chess Festival Groningen 2023 | A"]
[Site "Groningen, Netherlands"]
[Date "2023.12.28"]
[Round "7.30"]
[White "De Jong, Mathijs"]
[Black "Van Batenburg, Mees"]
[Result "1-0"]
[TimeControl "90min/40moves + 30min + 30sec/move"]
[WhiteElo "2008"]
[BlackElo "2109"]

1. d4 {[%clk 01:30:55]} {[%emt 00:00:27]} f5 {[%clk 01:30:55]} 2. Qd3 {[%clk
01:31:07]} {[%emt 00:00:14]} d5 {[%clk 01:24:47]} {[%emt 00:06:32]} 3. Bf4
{[%clk 01:29:01]} {[%emt 00:02:29]} Nf6 {[%clk 01:19:38]} {[%emt 00:05:39]} 4.
Nc3 {[%clk 01:23:45]} {[%emt 00:05:45]} e6 {[%clk 01:17:16]} {[%emt 00:02:52]}
5. Nf3 {[%clk 01:18:14]} {[%emt 00:06:02]} Bd6 {[%clk 00:59:40]} {[%emt
00:18:06]} 6. Ne5 {[%clk 01:13:13]} {[%emt 00:05:46]} O-O {[%clk 00:56:03]}
{[%emt 00:03:54]} 7. Nb5 {[%clk 01:03:11]} {[%emt 00:10:30]} Re8 {[%clk
00:44:19]} {[%emt 00:12:14]} 8. Bg5 {[%clk 00:49:25]} {[%emt 00:14:19]} Be7
{[%clk 00:38:13]} {[%emt 00:06:32]} 9. h3 {[%clk 00:42:01]} {[%emt 00:07:55]}
Ne4 {[%clk 00:22:55]} {[%emt 00:15:48]} 10. Bxe7 {[%clk 00:42:00]} {[%emt
00:00:31]} Qxe7 {[%clk 00:23:18]} {[%emt 00:00:14]} 11. g4 {[%clk 00:40:15]}
{[%emt 00:02:11]} Rf8 {[%clk 00:16:14]} {[%emt 00:07:31]} 12. Bg2 {[%clk
00:38:51]} {[%emt 00:01:53]} c6 {[%clk 00:14:29]} {[%emt 00:02:17]} 13. Nc3
{[%clk 00:38:53]} {[%emt 00:00:35]} Nd7 {[%clk 00:09:46]} {[%emt 00:05:13]} 14.
Nxd7 {[%clk 00:37:18]} {[%emt 00:02:03]} Bxd7 {[%clk 00:10:13]} 15. Bxe4 {[%clk
00:33:50]} {[%emt 00:03:57]} fxe4 {[%clk 00:10:39]} {[%emt 00:00:04]} 16. Qg3
{[%clk 00:30:54]} {[%emt 00:03:23]} e5 {[%clk 00:08:34]} {[%emt 00:02:38]} 17.
Qxe5 {[%clk 00:28:39]} {[%emt 00:02:43]} Qxe5 {[%clk 00:09:01]} {[%emt
00:00:04]} 18. dxe5 {[%clk 00:29:03]} {[%emt 00:00:07]} Rae8 {[%clk 00:09:24]}
{[%emt 00:00:05]} 19. e3 {[%clk 00:29:05]} {[%emt 00:00:25]} Rxe5 {[%clk
00:09:27]} {[%emt 00:01:09]} 20. Ne2 {[%clk 00:23:23]} {[%emt 00:05:31]} Re7
{[%clk 00:06:18]} {[%emt 00:03:38]} 21. Rc1 {[%clk 00:21:22]} {[%emt 00:02:31]}
Ref7 {[%clk 00:05:53]} {[%emt 00:00:55]} 22. Rh2 {[%clk 00:21:47]} {[%emt
00:00:12]} b5 {[%clk 00:05:25]} {[%emt 00:00:54]} 23. b4 {[%clk 00:19:20]}
{[%emt 00:02:54]} Rf6 {[%clk 00:04:12]} {[%emt 00:01:42]} 24. Ra1 {[%clk
00:18:50]} {[%emt 00:01:12]} a5 {[%clk 00:04:02]} {[%emt 00:00:29]} 25. a3
{[%clk 00:12:58]} {[%emt 00:06:25]} Ra8 {[%clk 00:04:16]} {[%emt 00:00:12]} 26.
Rb1 {[%clk 00:12:35]} {[%emt 00:01:07]} Rh6 {[%clk 00:04:06]} {[%emt 00:00:30]}
27. Rg2 {[%clk 00:06:55]} {[%emt 00:06:07]} Rxh3 {[%clk 00:03:54]} {[%emt
00:00:44]} 28. Kd2 {[%clk 00:07:21]} {[%emt 00:00:04]} Rh6 {[%clk 00:03:39]}
{[%emt 00:00:44]} 29. Kc3 {[%clk 00:07:03]} {[%emt 00:00:46]} Kf8 {[%clk
00:02:59]} {[%emt 00:01:11]} 30. Kd4 {[%clk 00:07:15]} {[%emt 00:00:18]} Ke7
{[%clk 00:03:02]} {[%emt 00:00:39]} 31. Kc5 {[%clk 00:06:48]} {[%emt 00:00:45]}
axb4 {[%clk 00:03:01]} {[%emt 00:00:31]} 32. axb4 {[%clk 00:07:13]} {[%emt
00:00:11]} Ra2 {[%clk 00:01:45]} {[%emt 00:02:05]} 33. Rc1 {[%clk 00:04:53]}
{[%emt 00:02:28]} Kd8 {[%clk 00:01:26]} {[%emt 00:00:46]} 34. g5 {[%clk
00:05:00]} {[%emt 00:00:23]} Rh4 {[%clk 00:01:33]} {[%emt 00:00:35]} 35. Kd6
{[%clk 00:04:30]} {[%emt 00:01:05]} Ra6 {[%clk 00:00:39]} {[%emt 00:01:35]} 36.
Rgg1 {[%clk 00:03:59]} {[%emt 00:00:36]} h6 {[%clk 00:00:32]} {[%emt 00:00:34]}
37. g6 {[%clk 00:03:51]} {[%emt 00:00:40]} Rh5 {[%clk 00:00:38]} {[%emt
00:00:24]} 38. Nd4 {[%clk 00:04:00]} {[%emt 00:00:42]} Kc8 {[%clk 00:00:33]}
{[%emt 00:00:12]} 39. Ke7 {[%clk 00:02:51]} {[%emt 00:01:40]} Ra7 {[%clk
00:00:37]} {[%emt 00:00:32]} 40. Ra1 {[%clk 00:03:16]} Rb7 {[%clk 00:00:34]}
{[%emt 00:00:42]} 41. Ra8+ {[%clk 00:03:31]} {[%emt 00:00:15]} Kc7 {[%clk
00:00:39]} {[%emt 00:00:18]} 42. Kf7 {[%clk 00:27:42]} {[%emt 00:06:29]} Kd6
{[%clk 00:10:24]} {[%emt 00:20:39]} 43. Kxg7 {[%clk 00:26:23]} {[%emt
00:01:42]} Bg4+ {[%clk 00:10:39]} {[%emt 00:00:14]} 44. Kf6 {[%clk 00:23:03]}
{[%emt 00:03:50]} Rg5 {[%clk 00:11:06]} {[%emt 00:00:42]} 45. Rd8+ {[%clk
00:22:56]} {[%emt 00:00:03]} Kc7 {[%clk 00:11:19]} {[%emt 00:00:19]} 46. Rh8
{[%clk 00:23:13]} {[%emt 00:00:09]} Rb6 {[%clk 00:07:42]} {[%emt 00:04:04]} 47.
Rxh6 {[%clk 00:20:38]} {[%emt 00:03:22]} Rh5 {[%clk 00:08:02]} {[%emt
00:00:05]} 48. Rxh5 {[%clk 00:20:05]} {[%emt 00:00:57]} 1-0

[Event "Chess Festival Groningen 2023 | A"]
[Site "Groningen, Netherlands"]
[Date "2023.12.28"]
[Round "7.31"]
[White "Schuricht, Emil Frederick"]
[Black "Vijayakumar, Rishi"]
[Result "1/2-1/2"]
[TimeControl "90min/40moves + 30min + 30sec/move"]
[WhiteElo "2095"]
[BlackElo "2104"]

1. e4 {[%clk 00:55:18]} c6 {[%clk 00:55:14]} 2. d4 {[%clk 00:55:18]} d5 {[%clk
00:55:14]} 3. exd5 {[%clk 00:55:18]} cxd5 {[%clk 00:55:14]} 4. c4 {[%clk
00:55:18]} Nf6 {[%clk 00:55:14]} 5. Nc3 {[%clk 00:55:18]} e6 {[%clk 00:55:14]}
6. Nf3 {[%clk 00:55:18]} Bb4 {[%clk 00:55:14]} 7. Bd2 {[%clk 00:55:18]} O-O
{[%clk 00:55:14]} 8. a3 {[%clk 00:55:18]} Bxc3 {[%clk 00:55:14]} 9. bxc3 {[%clk
00:55:18]} Nc6 {[%clk 00:55:14]} 10. Bd3 {[%clk 00:55:18]} dxc4 {[%clk
00:55:14]} 11. Bxc4 {[%clk 00:55:18]} Qc7 {[%clk 00:55:14]} 12. Qe2 {[%clk
00:55:18]} e5 {[%clk 00:55:14]} 13. dxe5 {[%clk 00:55:18]} Bg4 {[%clk
00:55:14]} 14. exf6 {[%clk 00:55:18]} Rfe8 {[%clk 00:55:14]} 15. Be3 {[%clk
00:55:18]} Ne5 {[%clk 00:55:14]} 16. Bxf7+ {[%clk 00:55:18]} Nxf7 {[%clk
00:55:14]} 17. O-O {[%clk 00:55:18]} Ne5 {[%clk 00:55:14]} 18. Qa2+ {[%clk
00:55:18]} Be6 {[%clk 00:55:14]} 19. Qd2 {[%clk 00:55:18]} Nxf3+ {[%clk
00:55:14]} 20. gxf3 {[%clk 00:55:18]} Qc6 {[%clk 00:55:14]} 21. Bd4 {[%clk
00:55:18]} Qxf3 {[%clk 00:55:14]} 22. Qg5 {[%clk 00:55:18]} g6 {[%clk
00:55:14]} 23. Qg3 {[%clk 00:55:18]} Bd5 {[%clk 00:55:14]} 24. Qxf3 {[%clk
00:55:18]} Bxf3 {[%clk 00:55:14]} 25. Rfe1 {[%clk 00:55:18]} Kf7 {[%clk
00:55:14]} 26. Re3 {[%clk 00:55:18]} Rxe3 {[%clk 00:55:14]} 27. fxe3 {[%clk
00:55:18]} Rd8 {[%clk 00:55:14]} 28. Kf2 {[%clk 00:55:18]} Bc6 {[%clk
00:55:14]} 29. Re1 {[%clk 00:55:18]} Re8 {[%clk 00:55:14]} 30. Rg1 {[%clk
00:55:18]} a6 {[%clk 00:55:14]} 31. Rg5 {[%clk 00:55:18]} Re4 {[%clk 00:55:14]}
32. Kg3 {[%clk 00:55:18]} Re6 {[%clk 00:55:14]} 33. Kf2 {[%clk 00:55:18]} Re4
{[%clk 00:55:14]} 34. Rg1 {[%clk 00:55:18]} Rh4 {[%clk 00:55:14]} 35. Kg3
{[%clk 00:55:18]} Rh5 {[%clk 00:55:14]} 36. h4 {[%clk 00:55:18]} Rf5 {[%clk
00:55:14]} 37. Re1 {[%clk 00:55:18]} 1/2-1/2

[Event "Chess Festival Groningen 2023 | A"]
[Site "Groningen, Netherlands"]
[Date "2023.12.28"]
[Round "7.32"]
[White "Krasenkowa, Elena"]
[Black "Mohtaat, Homayoun"]
[Result "1-0"]
[TimeControl "90min/40moves + 30min + 30sec/move"]
[BlackFideId "11701552"]
[WhiteElo "2109"]
[BlackElo "2013"]

1. d4 Nf6 2. c4 g6 3. Nc3 Bg7 4. e4 d6 5. h3 O-O 6. Nf3 e5 7. d5 a5 8. Bg5 h6 9.
Be3 Na6 10. Be2 Nc5 11. Nd2 b6 12. a3 Bd7 13. b4 axb4 14. axb4 Na6 15. Rb1 Nh7
16. h4 f5 17. f3 f4 18. Bf2 Nf6 19. Bd3 g5 20. hxg5 hxg5 21. Qe2 Kh7 {[%clk
00:00:00]} 22. c5+ {Notation unreadable [+20] } 1-0